bitfinex/quotes_BTCUSD_20241120
["timestamp","ask_amount","ask_price","bid_price","bid_amount"]
[1732137098398,0.12121129,94082.0,94077.0,0.148813]
[1732137098601,0.12121129,94082.0,94081.0,0.106291]
[1732137100226,0.00504,94087.0,94079.0,0.255104]
[1732137100422,0.111325,94087.0,94082.0,0.10629]
[1732137100801,0.111325,94087.0,94078.0,0.148812]
[1732137101021,0.19961129,94088.0,94087.0,0.106284]
[1732137101174,0.12625129,94094.0,94075.0,0.19997848]
[1732137101376,0.10628,94092.0,94088.0,0.106282]
[1732137101576,0.23252829,94094.0,94075.0,0.19997848]
[1732137101777,0.23252829,94094.0,94089.0,0.106282]
[1732137102158,0.23252829,94094.0,94090.0,0.00226327]
[1732137102369,0.12625129,94094.0,94090.0,0.00226327]
[1732137102576,0.12757979,94094.0,94090.0,0.00226327]
[1732137102776,0.12757979,94094.0,94087.0,0.148798]
[1732137103187,0.23385579,94094.0,94089.0,0.106281]
[1732137103400,0.23252729,94094.0,94089.0,0.106281]
[1732137103580,0.0950428,94092.0,94090.0,0.10854427]
[1732137103773,0.0963713,94093.0,94090.0,0.10854427]
[1732137104442,0.10628,94091.0,94090.0,0.00226327]
[1732137104641,0.3089273,94093.0,94090.0,0.00226327]
[1732137104642,0.2013208,94093.0,94090.0,0.00226327]
[1732137104782,0.0950428,94092.0,94089.0,0.106281]
[1732137104985,0.0950428,94092.0,94091.0,0.00226149]
[1732137105211,0.0950428,94092.0,94089.0,0.106281]
[1732137105212,0.2488422,94093.0,94089.0,0.106281]
[1732137105419,0.2488422,94093.0,94091.0,0.00226061]
[1732137105623,0.2488422,94093.0,94089.0,0.106281]
[1732137105866,0.09506605,94090.0,94089.0,0.106281]
[1732137106073,0.09506605,94090.0,94089.0,0.10854161]
[1732137106266,0.09506605,94091.0,94089.0,0.10854161]
[1732137106650,0.09506605,94091.0,94090.0,0.106281]
[1732137106844,0.12625129,94094.0,94089.0,0.00226061]
[1732137106845,0.09506605,94092.0,94091.0,0.10628]
[1732137107258,0.09506605,94092.0,94089.0,0.106281]
[1732137107455,0.09506605,94091.0,94090.0,0.00226168]
[1732137107684,0.1425642,94093.0,94090.0,0.00226168]
[1732137107885,0.1425642,94093.0,94089.0,0.106281]
[1732137108094,0.09507922,94091.0,94089.0,0.106281]
[1732137108359,0.09507922,94091.0,94090.0,0.00226345]
[1732137108483,0.20135922,94091.0,94090.0,0.00226345]
[1732137108698,0.1438927,94093.0,94089.0,0.106281]
[1732137108699,0.1425642,94092.0,94089.0,0.106281]
[1732137108921,0.09508633,94090.0,94089.0,0.106281]
[1732137109282,0.1426295,94092.0,94089.0,0.106281]
[1732137109556,0.09509327,94090.0,94089.0,0.106281]
[1732137110064,0.1426295,94092.0,94086.0,0.255085]
[1732137110202,0.1426295,94092.0,94085.0,0.148801]
[1732137110203,0.09509182,94090.0,94089.0,0.106281]
[1732137110593,0.09509182,94091.0,94089.0,0.106281]
[1732137110789,0.09509182,94091.0,94090.0,0.106281]
[1732137110990,0.1426295,94093.0,94070.0,0.0028573]
[1732137110991,0.1426295,94092.0,94091.0,0.106279]
[1732137111493,0.1426295,94093.0,94091.0,0.106279]
[1732137111670,0.1426295,94092.0,94091.0,0.106279]
[1732137112271,0.1426295,94093.0,94091.0,0.106279]
[1732137112772,0.1426295,94093.0,94092.0,0.106278]
[1732137113173,0.12625129,94094.0,94090.0,0.148793]
[1732137113174,0.22137068,94094.0,94090.0,0.148793]
[1732137113407,0.22137068,94094.0,94093.0,0.106277]
[1732137113751,0.22138349,94094.0,94088.0,0.0008559]
[1732137113962,0.22138349,94094.0,94089.0,0.106281]
[1732137114164,0.12625129,94094.0,94092.0,0.106278]
[1732137114365,0.12625129,94094.0,94090.0,0.138165]
[1732137114366,0.12625129,94094.0,94091.0,0.106279]
[1732137114550,0.09514245,94092.0,94089.0,0.106281]
[1732137114749,0.09514245,94093.0,94092.0,0.106278]
[1732137114993,0.12625129,94094.0,94088.0,0.0008559]
[1732137115193,0.0951353,94091.0,94088.0,0.0008559]
[1732137115505,0.0951353,94091.0,94090.0,0.106281]
[1732137115809,0.12625129,94094.0,94088.0,0.0008559]
[1732137115810,0.0951353,94092.0,94091.0,0.10628]
[1732137116513,0.12625129,94094.0,94093.0,0.106277]
[1732137116935,0.12625129,94094.0,94090.0,0.138165]
[1732137117112,0.09511305,94092.0,94090.0,0.138165]
[1732137117313,0.09511305,94092.0,94091.0,0.0022627]
[1732137117529,0.0013285,94093.0,94091.0,0.0022627]
[1732137117708,0.0013285,94093.0,94090.0,0.10628]
[1732137117893,0.1076065,94093.0,94091.0,0.00226092]
[1732137118093,0.1076065,94093.0,94090.0,0.106281]
[1732137118094,0.09512107,94092.0,94090.0,0.106281]
[1732137118288,0.09512107,94092.0,94091.0,0.00226092]
[1732137118513,0.0013285,94093.0,94091.0,0.00226092]
[1732137118716,0.08107053,94092.0,94089.0,0.106281]
[1732137118910,0.17620453,94092.0,94090.0,0.10628]
[1732137119125,0.17620453,94092.0,94088.0,0.1071379]
[1732137119353,0.17620453,94092.0,94089.0,0.106282]
[1732137119617,0.095134,94091.0,94089.0,0.106282]
[1732137119724,0.095134,94091.0,94088.0,0.0008559]
[1732137119725,0.095134,94091.0,94090.0,0.106281]
[1732137120377,0.08107053,94092.0,94091.0,0.10628]
[1732137120378,0.095134,94092.0,94091.0,0.10628]
[1732137121674,0.00504,94094.0,94089.0,0.138165]
[1732137121882,0.09517501,94093.0,94092.0,0.106278]
[1732137122100,0.09517501,94093.0,94092.0,0.10853655]
[1732137122714,0.00504,94094.0,94093.0,0.106277]
[1732137123178,0.35644658,94094.0,94093.0,0.106277]
[1732137123369,0.35644658,94094.0,94093.0,0.10853555]
[1732137123694,0.54679661,94094.0,94093.0,0.10853555]
[1732137124164,0.35644658,94094.0,94093.0,0.10853555]
[1732137124366,0.54679661,94094.0,94093.0,0.10853555]
[1732137124747,0.35140658,94094.0,94093.0,0.10853555]
[1732137124974,0.54175661,94095.0,94094.0,0.106276]
[1732137125303,0.35151761,94095.0,94094.0,0.106276]
[1732137125843,0.001712,94096.0,94095.0,0.106275]
[1732137125844,0.54371832,94096.0,94095.0,0.106275]
[1732137126019,0.35327815,94096.0,94095.0,0.106275]
[1732137126283,0.54375422,94096.0,94095.0,0.106275]
[1732137126459,0.54375422,94096.0,94095.0,0.10853355]
[1732137126460,0.35327815,94096.0,94095.0,0.10853355]
[1732137126608,0.001712,94096.0,94095.0,0.10853355]
[1732137127221,0.35325876,94096.0,94095.0,0.10853355]
[1732137127420,0.001712,94096.0,94095.0,0.10853355]
[1732137128880,0.07266326,94096.0,94095.0,0.00225855]
[1732137129082,0.17893726,94096.0,94089.0,0.106281]
[1732137129260,0.08107053,94090.0,94089.0,0.106281]
[1732137130027,0.08107053,94090.0,94089.0,0.106282]
[1732137130566,0.08107053,94090.0,94079.0,0.14881]
[1732137130773,0.08107053,94090.0,94054.0,0.23852935]
[1732137130774,0.241842,94071.0,94066.0,0.0008574]
[1732137130983,0.24435,94064.0,94059.0,0.000855]
[1732137131229,0.78705527,94064.0,94059.0,0.000855]
[1732137131441,0.70266893,94064.0,94059.0,0.000855]
[1732137131651,0.82134121,94064.0,94059.0,0.000855]
[1732137131850,0.76073946,94064.0,94059.0,0.000855]
[1732137132471,0.89280201,94064.0,94059.0,0.000855]
[1732137132760,0.93940376,94064.0,94059.0,0.000855]
[1732137132959,0.93040376,94064.0,94059.0,0.000855]
[1732137133172,0.93240376,94064.0,94059.0,0.000855]
[1732137133380,1.02247429,94064.0,94059.0,0.000855]
[1732137133868,1.05725888,94064.0,94059.0,0.000855]
[1732137134022,1.0293169,94064.0,94059.0,0.000855]
[1732137134236,0.116326,94050.0,94049.0,0.0030973]
[1732137134416,0.64992951,94050.0,94049.0,0.0030973]
[1732137134615,0.68902869,94050.0,94049.0,0.0030973]
[1732137134818,0.33782488,94050.0,94049.0,0.0030973]
[1732137135247,0.23149888,94050.0,94049.0,0.0030973]
[1732137135457,0.216326,94050.0,94049.0,0.0030973]
[1732137136203,0.26479016,94050.0,94049.0,0.0030973]
[1732137136443,0.30157475,94050.0,94049.0,0.0030973]
[1732137137043,0.26479016,94050.0,94049.0,0.0030973]
[1732137140127,0.01,94055.0,94049.0,0.0030973]
[1732137140357,0.212646,94053.0,94049.0,0.0030973]
[1732137140568,0.11,94055.0,94049.0,0.0030973]
[1732137140776,0.30741291,94063.0,94049.0,0.0030973]
[1732137140777,0.00504,94063.0,94051.0,0.138222]
[1732137140986,0.00504,94063.0,94050.0,0.01350278]
[1732137140987,0.01504,94063.0,94050.0,0.01111375]
[1732137141206,0.01504,94067.0,94053.0,0.138219]
[1732137141338,0.01504,94067.0,94049.0,0.0030973]
[1732137141339,0.10631,94065.0,94059.0,0.106316]
[1732137141688,0.227654,94067.0,94059.0,0.106316]
[1732137141838,0.10631,94064.0,94060.0,0.00238456]
[1732137142443,0.10631,94064.0,94059.0,0.106315]
[1732137142673,0.009,94065.0,94062.0,0.138206]
[1732137142885,0.21628779,94075.0,94064.0,0.10631]
[1732137142886,0.1,94072.0,94064.0,0.10631]
[1732137143107,0.116302,94071.0,94065.0,0.106309]
[1732137143528,0.116302,94071.0,94062.0,0.138206]
[1732137143529,0.1,94072.0,94062.0,0.138206]
[1732137143782,0.1,94072.0,94050.0,0.04397808]
[1732137143783,0.1063,94073.0,94067.0,0.106306]
[1732137143934,0.11134,94073.0,94067.0,0.106306]
[1732137144143,0.11134,94073.0,94064.0,0.138202]
[1732137144356,0.11134,94073.0,94068.0,0.106305]
[1732137144800,0.11134,94073.0,94069.0,0.00235428]
[1732137145000,0.106302,94072.0,94069.0,0.00235428]
[1732137145477,0.106302,94072.0,94067.0,0.106307]
[1732137145896,0.106302,94072.0,94055.0,0.138216]
[1732137145897,0.22780288,94069.0,94068.0,0.00234773]
[1732137146324,0.12149888,94069.0,94053.0,0.00496]
[1732137146539,0.12149888,94069.0,94053.0,0.106323]
[1732137146540,0.12149888,94054.0,94053.0,0.106323]
[1732137146878,0.13011512,94068.0,94049.0,0.0030973]
[1732137146879,0.12149888,94066.0,94049.0,0.0030973]
[1732137147082,0.12149888,94066.0,94053.0,0.00234053]
[1732137147290,0.12149888,94066.0,94049.0,0.0030973]
[1732137147291,0.12149888,94066.0,94050.0,0.00235629]
[1732137147503,0.12149888,94066.0,94049.0,0.0030973]
[1732137147761,0.12149888,94066.0,94063.0,0.106311]
[1732137147910,0.12149888,94066.0,94060.0,0.106314]
[1732137148115,0.12149888,94066.0,94061.0,0.0023466]
[1732137148330,0.10631,94064.0,94061.0,0.0023466]
[1732137148557,0.10631,94064.0,94059.0,0.106315]
[1732137148810,0.12149888,94066.0,94062.0,0.00234385]
[1732137149058,0.106312,94063.0,94058.0,0.106317]
[1732137149299,0.10631,94064.0,94059.0,0.10865404]
[1732137149539,0.12149888,94066.0,94059.0,0.10865404]
[1732137149540,0.12149888,94066.0,94059.0,0.00233904]
[1732137149787,0.106315,94060.0,94059.0,0.00233904]
[1732137150072,0.106311,94063.0,94049.0,0.0039535]
[1732137150260,0.212618,94065.0,94056.0,0.148847]
[1732137150491,0.106313,94062.0,94057.0,0.10866123]
[1732137150728,0.106314,94061.0,94057.0,0.10866123]
[1732137150970,0.212621,94064.0,94057.0,0.00234423]
[1732137150971,0.106313,94062.0,94057.0,0.00234423]
[1732137151214,0.106315,94060.0,94057.0,0.00234423]
[1732137151555,0.212626,94062.0,94049.0,0.0039535]
[1732137151556,0.00504,94053.0,94049.0,0.0039535]
[1732137152237,0.111363,94053.0,94049.0,0.0039535]
[1732137152463,0.106324,94052.0,94049.0,0.0039535]
[1732137153629,0.00504,94053.0,94049.0,0.0039535]
[1732137153875,0.106324,94052.0,94049.0,0.0039535]
[1732137155722,0.111363,94053.0,94049.0,0.0039535]
[1732137156416,0.111363,94053.0,94049.0,0.1102805]
[1732137156417,0.00504,94053.0,94049.0,0.1102805]
[1732137156628,0.00504,94053.0,94050.0,0.106326]
[1732137157075,0.00504,94053.0,94049.0,0.0039535]
[1732137157312,0.00504,94053.0,94049.0,0.1102805]
[1732137157772,0.00504,94053.0,94052.0,0.106324]
[1732137158008,0.09967999,94064.0,94060.0,0.159472]
[1732137158220,0.1,94066.0,94050.0,0.0824]
[1732137158457,0.12653888,94067.0,94066.0,0.106308]
[1732137158663,0.12653888,94067.0,94064.0,0.106309]
[1732137158948,0.12653888,94067.0,94052.0,0.318972]
[1732137158949,0.12653888,94067.0,94065.0,0.10865624]
[1732137159184,0.12653888,94067.0,94065.0,0.00234824]
[1732137159185,0.00504,94066.0,94065.0,0.00234824]
[1732137159392,0.1126769,94066.0,94065.0,0.00234824]
[1732137159875,0.1126769,94066.0,94055.0,0.159479]
[1732137159876,0.212618,94065.0,94055.0,0.159479]
[1732137160112,0.12149888,94056.0,94055.0,0.265799]
[1732137160343,0.12149888,94056.0,94055.0,0.10632]
[1732137160789,0.12149888,94056.0,94049.0,0.0039535]
[1732137160790,0.12653888,94056.0,94052.0,0.106323]
[1732137161006,0.12653888,94056.0,94051.0,0.106324]
[1732137161230,0.12653888,94056.0,94052.0,0.106323]
[1732137161452,0.23285788,94056.0,94052.0,0.106323]
[1732137161693,0.23285788,94056.0,94050.0,0.159489]
[1732137161694,0.106321,94054.0,94050.0,0.106325]
[1732137161907,0.12653888,94056.0,94051.0,0.106325]
[1732137161908,0.106321,94055.0,94051.0,0.106325]
[1732137162335,0.0823,94053.0,94049.0,0.0039535]
[1732137163084,0.0823,94053.0,94049.0,0.1102795]
[1732137163304,0.0823,94053.0,94050.0,0.106326]
[1732137163545,0.0823,94053.0,94049.0,0.1102805]
[1732137163757,0.0823,94053.0,94049.0,0.0039535]
[1732137164187,0.188623,94053.0,94049.0,0.0039535]
[1732137164430,0.12653888,94056.0,94049.0,0.0039535]
[1732137164677,0.106326,94051.0,94049.0,0.0039535]
[1732137164915,0.106326,94050.0,94049.0,0.0039535]
[1732137165155,0.134366,94050.0,94049.0,0.0039535]
[1732137165406,0.13569517,94050.0,94049.0,0.0039535]
[1732137165878,0.18509517,94050.0,94049.0,0.0039535]
[1732137166983,0.22730762,94050.0,94049.0,0.0039535]
[1732137167209,0.22597845,94050.0,94049.0,0.0039535]
[1732137170369,0.183766,94050.0,94049.0,0.0039535]
[1732137170618,0.65612563,94050.0,94049.0,0.0039535]
[1732137170855,0.09469364,94050.0,94049.0,0.1102805]
[1732137171078,0.09469364,94059.0,94050.0,0.148856]
[1732137171306,0.00504,94061.0,94056.0,0.148846]
[1732137171746,0.00504,94061.0,94058.0,0.106316]
[1732137171983,0.00504,94061.0,94056.0,0.148846]
[1732137171984,0.00504,94061.0,94057.0,0.106317]
[1732137172657,0.00504,94061.0,94056.0,0.148846]
[1732137172898,0.00504,94061.0,94058.0,0.106316]
[1732137173311,0.00504,94061.0,94059.0,0.106316]
[1732137173535,0.09478563,94062.0,94057.0,0.148845]
[1732137173950,0.09478563,94062.0,94061.0,0.106313]
[1732137174167,0.09984711,94062.0,94061.0,0.106313]
[1732137174412,0.09984711,94062.0,94061.0,0.00236663]
[1732137174413,0.00504,94062.0,94061.0,0.00236663]
[1732137174857,0.00504,94061.0,94041.0,0.0798]
[1732137175062,0.00504,94061.0,94052.0,0.148853]
[1732137175063,0.09988202,94061.0,94052.0,0.148853]
[1732137175281,0.09988202,94061.0,94057.0,0.106318]
[1732137175282,0.09484202,94060.0,94057.0,0.106318]
[1732137175516,0.09484202,94058.0,94057.0,0.106318]
[1732137175908,0.09484202,94058.0,94057.0,0.10868463]
[1732137176131,0.14217844,94059.0,94057.0,0.00236663]
[1732137176367,0.18957126,94060.0,94057.0,0.00236663]
[1732137176590,0.18957126,94058.0,94057.0,0.106318]
[1732137176834,0.18957126,94058.0,94054.0,0.148849]
[1732137176835,0.18957126,94060.0,94058.0,0.106317]
[1732137177250,0.53993072,94060.0,94058.0,0.106317]
[1732137177459,0.35035946,94059.0,94058.0,0.106317]
[1732137177813,0.35037958,94059.0,94058.0,0.106317]
[1732137178041,0.54021675,94060.0,94058.0,0.106317]
[1732137178310,0.35038147,94059.0,94058.0,0.106317]
[1732137178534,0.14237585,94059.0,94054.0,0.148849]
[1732137178668,0.14237585,94059.0,94058.0,0.106317]
[1732137178867,0.14237585,94060.0,94059.0,0.106316]
[1732137179176,0.00504,94061.0,94059.0,0.106316]
[1732137179582,0.14238296,94060.0,94059.0,0.106316]
[1732137180842,0.14742296,94061.0,94046.0,0.19270082]
[1732137181039,0.00504,94061.0,94060.0,0.106315]
[1732137181256,0.35546558,94061.0,94060.0,0.106315]
[1732137181445,0.35547485,94061.0,94060.0,0.106315]
[1732137181584,0.00504,94061.0,94060.0,0.106315]
[1732137181782,0.00504,94061.0,94060.0,0.10867946]
[1732137182572,0.54537631,94061.0,94060.0,0.10867946]
[1732137182772,0.35551108,94061.0,94060.0,0.00236446]
[1732137183353,0.35551108,94061.0,94059.0,0.106315]
[1732137183564,0.54033631,94060.0,94044.0,0.148866]
[1732137183741,0.54033631,94060.0,94034.0,0.01]
[1732137183742,0.09494713,94055.0,94050.0,0.148856]
[1732137183942,0.09494694,94054.0,94048.0,0.148859]
[1732137184148,0.09494694,94055.0,94054.0,0.106321]
[1732137184573,0.09494694,94056.0,94055.0,0.10632]
[1732137184782,0.1424207,94058.0,94055.0,0.10632]
[1732137184783,0.1424207,94058.0,94055.0,0.148849]
[1732137184988,0.0773,94056.0,94052.0,0.0008557]
[1732137185196,0.19490523,94053.0,94052.0,0.0008557]
[1732137185412,0.19490523,94053.0,94052.0,0.1071797]
[1732137185413,0.54673078,94053.0,94052.0,0.1071797]
[1732137185655,0.35553648,94053.0,94052.0,0.1071797]
[1732137186114,0.19498731,94053.0,94052.0,0.1071797]
[1732137186330,0.54548379,94053.0,94052.0,0.0008557]
[1732137186532,0.54548379,94053.0,94052.0,0.1071797]
[1732137186735,0.35553648,94053.0,94052.0,0.0008557]
[1732137187147,0.19499668,94053.0,94052.0,0.0008557]
[1732137187354,0.65314522,94053.0,94052.0,0.0008557]
[1732137187562,0.54549316,94053.0,94052.0,0.0008557]
[1732137187775,0.57092203,94053.0,94052.0,0.0008557]
[1732137188194,0.35553648,94053.0,94052.0,0.0008557]
[1732137188820,0.46185948,94053.0,94052.0,0.0008557]
[1732137189018,0.69919102,94053.0,94052.0,0.0008557]
[1732137189445,0.46185948,94053.0,94052.0,0.0008557]
[1732137189866,0.69932976,94053.0,94052.0,0.0008557]
[1732137190417,0.46185948,94053.0,94052.0,0.0008557]
[1732137190628,0.46202718,94053.0,94052.0,0.0008557]
[1732137192130,0.48502718,94053.0,94052.0,0.0008557]
[1732137192669,0.52181177,94053.0,94052.0,0.0008557]
[1732137193807,0.48502718,94053.0,94052.0,0.0008557]
[1732137195282,0.5921423,94053.0,94052.0,0.0008557]
[1732137199455,0.6921423,94053.0,94052.0,0.0008557]
[1732137200247,0.106326,94050.0,94049.0,0.00360788]
[1732137200551,0.63025914,94050.0,94049.0,0.00360788]
[1732137200822,0.66328164,94050.0,94049.0,0.00360788]
[1732137201630,0.62649705,94050.0,94049.0,0.00360788]
[1732137201848,0.7355596,94050.0,94049.0,0.00360788]
[1732137202075,0.62649705,94050.0,94049.0,0.00360788]
[1732137202288,0.87702113,94050.0,94049.0,0.00360788]
[1732137202490,0.5921453,94050.0,94049.0,0.00360788]
[1732137204887,0.59192469,94050.0,94049.0,0.00360788]
[1732137205096,0.62723499,94050.0,94049.0,0.00360788]
[1732137205292,0.59192469,94050.0,94049.0,0.00360788]
[1732137205502,0.72216239,94050.0,94049.0,0.00360788]
[1732137205708,0.48480957,94050.0,94049.0,0.00360788]
[1732137207175,0.134366,94050.0,94049.0,0.00360788]
[1732137207449,0.72350794,94050.0,94049.0,0.00360788]
[1732137207652,0.48480957,94050.0,94049.0,0.00360788]
[1732137207860,0.72217726,94050.0,94049.0,0.00360788]
[1732137208040,0.48480957,94050.0,94049.0,0.00360788]
[1732137209625,0.72221055,94050.0,94049.0,0.00360788]
[1732137210053,0.72220775,94050.0,94049.0,0.00360788]
[1732137210301,0.48480957,94050.0,94049.0,0.00360788]
[1732137210779,0.37848357,94050.0,94049.0,0.00360788]
[1732137211225,0.48480957,94050.0,94049.0,0.00360788]
[1732137213762,0.37848357,94050.0,94049.0,0.00360788]
[1732137213994,0.35044357,94050.0,94049.0,0.10993488]
[1732137214235,0.59290282,94051.0,94049.0,0.10993488]
[1732137214480,0.00504,94051.0,94050.0,0.106326]
[1732137214953,0.106326,94050.0,94049.0,0.00360788]
[1732137215141,0.82085742,94050.0,94049.0,0.00360788]
[1732137215318,0.69721632,94050.0,94049.0,0.00360788]
[1732137215882,0.72021632,94050.0,94049.0,0.00360788]
[1732137217575,0.82733144,94050.0,94049.0,0.00360788]
[1732137217703,0.134369,94047.0,94046.0,0.0008551]
[1732137217907,0.48626509,94047.0,94046.0,0.0008551]
[1732137218170,0.48493585,94047.0,94046.0,0.0008551]
[1732137222135,0.72252334,94047.0,94046.0,0.0008551]
[1732137222643,0.48493585,94047.0,94046.0,0.0008551]
[1732137224291,0.72251571,94047.0,94046.0,0.0008551]
[1732137224485,0.48493585,94047.0,94046.0,0.0008551]
[1732137226442,0.5939984,94047.0,94046.0,0.0008551]
[1732137227051,0.48493585,94047.0,94046.0,0.0008551]
[1732137227695,0.35056685,94047.0,94046.0,0.1071851]
[1732137227896,0.35560685,94047.0,94046.0,0.0008551]
[1732137228283,0.59327691,94047.0,94046.0,0.0008551]
[1732137228483,0.35606601,94047.0,94046.0,0.0008551]
[1732137228896,0.35606601,94047.0,94046.0,0.1071851]
[1732137229099,0.35606601,94047.0,94046.0,0.0008551]
[1732137229310,0.35606601,94047.0,94046.0,0.00322542]
[1732137229311,0.46239501,94047.0,94046.0,0.00322542]
[1732137229518,0.57145756,94047.0,94046.0,0.0008551]
[1732137229713,0.65235756,94047.0,94046.0,0.0008551]
[1732137230021,0.75759472,94047.0,94046.0,0.0008551]
[1732137230447,1.042873,94047.0,94046.0,0.0008551]
[1732137230683,0.83876076,94047.0,94046.0,0.0008551]
[1732137233806,0.87349602,94047.0,94046.0,0.0008551]
[1732137234016,0.83876076,94047.0,94046.0,0.0008551]
[1732137234214,0.80197617,94047.0,94046.0,0.0008551]
[1732137235380,0.72081013,94047.0,94046.0,0.0008551]
[1732137236033,0.00504,94043.0,94034.0,0.0010634]
[1732137236203,0.00504,94043.0,94042.0,0.106335]
[1732137236204,0.23787598,94043.0,94042.0,0.106335]
[1732137236410,0.54154547,94043.0,94042.0,0.1406489]
[1732137236679,0.54154547,94043.0,94042.0,0.106335]
[1732137236680,0.35123956,94043.0,94042.0,0.106335]
[1732137236875,0.19032007,94047.0,94045.0,0.106332]
[1732137237087,0.35128679,94046.0,94044.0,0.159498]
[1732137237298,0.19032007,94048.0,94047.0,0.106329]
[1732137237503,0.5416082,94048.0,94047.0,0.106329]
[1732137238149,0.5416082,94048.0,94045.0,0.159496]
[1732137238150,0.54152791,94048.0,94045.0,0.159496]
[1732137238358,0.1902967,94048.0,94047.0,0.106329]
[1732137238541,0.35115362,94048.0,94047.0,0.106329]
[1732137239328,0.54145032,94048.0,94047.0,0.106329]
[1732137241785,0.35115362,94048.0,94047.0,0.106329]
[1732137241995,0.35115362,94048.0,94047.0,0.10869076]
[1732137241996,0.14272127,94048.0,94047.0,0.10869076]
[1732137242211,0.0017116,94049.0,94048.0,0.106328]
[1732137242417,0.09685379,94049.0,94048.0,0.16504678]
[1732137242680,0.0017116,94049.0,94048.0,0.24419595]
[1732137242896,0.0017116,94049.0,94048.0,0.35627107]
[1732137243317,0.0017116,94049.0,94048.0,0.47772191]
[1732137243528,0.0017116,94049.0,94048.0,0.52762191]
[1732137245711,0.0017116,94049.0,94048.0,0.40617107]
[1732137249750,0.0017116,94049.0,94048.0,0.34745229]
[1732137251267,0.0017116,94049.0,94048.0,0.34945229]
[1732137251492,0.0017116,94049.0,94048.0,0.34745229]
[1732137253881,0.0017116,94049.0,94048.0,0.10867717]
[1732137257296,0.543,94026.0,94011.0,0.0002]
[1732137257527,1.8627398,94026.0,94011.0,0.0002]
[1732137257738,1.66571896,94026.0,94011.0,0.0002]
[1732137257950,0.49616812,94026.0,94011.0,0.0002]
[1732137258279,0.83609378,94026.0,94011.0,0.0002]
[1732137258378,0.62830199,94026.0,94011.0,0.0002]
[1732137258605,0.62829589,94026.0,94011.0,0.0002]
[1732137258817,0.48616812,94026.0,94011.0,0.0002]
[1732137259493,0.52948639,94026.0,94011.0,0.0002]
[1732137259921,0.66261416,94026.0,94011.0,0.0002]
[1732137260137,0.52048639,94026.0,94011.0,0.0002]
[1732137260596,1.00146673,94026.0,94011.0,0.0002]
[1732137261268,0.66993723,94026.0,94011.0,0.0002]
[1732137261696,0.66093723,94026.0,94011.0,0.0002]
[1732137261905,0.90296965,94026.0,94011.0,0.0002]
[1732137262124,0.91196965,94026.0,94011.0,0.0002]
[1732137262347,0.77899978,94026.0,94011.0,0.0002]
[1732137262563,0.92096965,94026.0,94011.0,0.0002]
[1732137263452,1.12808489,94026.0,94011.0,0.0002]
[1732137263663,1.12808489,94026.0,93998.0,0.0002]
[1732137263664,0.02,94001.0,93998.0,0.0002]
[1732137263876,0.24783184,94001.0,93998.0,0.0002]
[1732137264099,0.59691695,94001.0,93998.0,0.0002]
[1732137264531,0.70403207,94001.0,93998.0,0.0002]
[1732137264791,0.37794696,94001.0,93998.0,0.0002]
[1732137266954,0.4993978,94001.0,93998.0,0.0002]
[1732137269544,0.36928268,94001.0,93998.0,0.0002]
[1732137270670,0.26290168,94001.0,93998.0,0.0002]
[1732137270883,0.36928268,94001.0,93998.0,0.0002]
[1732137271097,0.36928268,94001.0,94000.0,1.000856]
[1732137271356,0.36928268,94001.0,94000.0,1.00298574]
[1732137273448,0.26290168,94001.0,94000.0,1.00298574]
[1732137274131,0.12145084,94001.0,94000.0,1.00298574]
[1732137274382,0.13145084,94001.0,94000.0,1.00298574]
[1732137274615,0.14145084,94001.0,94000.0,1.00298574]
[1732137274875,0.24783184,94001.0,94000.0,1.00298574]
[1732137275587,0.24783184,94001.0,94000.0,1.000856]
[1732137275831,0.24783184,94001.0,94000.0,0.46942026]
[1732137276073,0.24783184,94001.0,94000.0,0.47154809]
[1732137276622,0.14145084,94001.0,94000.0,0.47154809]
[1732137276857,0.13145084,94001.0,94000.0,0.62519051]
[1732137277100,0.13145084,94001.0,94000.0,0.47154809]
[1732137278449,0.12145084,94001.0,94000.0,0.47154809]
[1732137278663,0.13145084,94001.0,94000.0,0.47154809]
[1732137279336,0.13145084,94001.0,94000.0,0.57793009]
[1732137279540,0.12145084,94001.0,94000.0,0.47154809]
[1732137279760,0.13145084,94001.0,94000.0,0.47154809]
[1732137279997,0.13145084,94001.0,94000.0,0.57793009]
[1732137280227,0.13145084,94001.0,94000.0,0.47154809]
[1732137281153,0.13145084,94001.0,94000.0,0.57793009]
[1732137283974,0.12145084,94001.0,94000.0,0.57793009]
[1732137284452,0.12145084,94001.0,94000.0,0.49051606]
[1732137284685,0.212721,94020.0,94000.0,0.49051606]
[1732137284686,0.01,94024.0,94010.0,0.106371]
[1732137284912,0.12145084,94029.0,94010.0,0.106371]
[1732137284913,0.01,94023.0,94010.0,0.106371]
[1732137285113,0.01,94024.0,94010.0,0.106371]
[1732137285334,0.01,94024.0,94010.0,0.10847384]
[1732137285550,0.01,94026.0,94010.0,0.10847384]
[1732137285771,0.01,94024.0,94010.0,0.10847384]
[1732137286174,0.01,94026.0,94010.0,0.10847384]
[1732137286623,0.13145084,94029.0,94010.0,0.10847384]
[1732137287459,0.12145084,94029.0,94010.0,0.21558896]
[1732137287668,0.12145084,94029.0,94010.0,0.29299666]
[1732137289383,0.01,94032.0,94010.0,0.29299666]
[1732137289971,0.01,94030.0,94010.0,0.29299666]
[1732137290752,0.00132935,94034.0,94010.0,0.29299666]
[1732137290953,0.01,94044.0,94010.0,0.67941643]
[1732137291377,2e-07,94011.0,94010.0,0.68141643]
[1732137292801,0.0017116,94049.0,94048.0,0.106328]
[1732137293174,0.0017116,94049.0,94048.0,0.10853863]
[1732137296772,0.0017116,94049.0,94048.0,0.10960178]
[1732137297331,0.0017116,94049.0,94048.0,0.14372847]
[1732137298163,0.0017116,94049.0,94048.0,0.14266532]
[1732137300135,0.0017116,94049.0,94048.0,0.20478115]
[1732137301334,0.0017116,94049.0,94048.0,0.31189627]
[1732137301510,0.0017116,94049.0,94048.0,0.38979627]
[1732137302324,0.0017116,94049.0,94048.0,0.39179627]
[1732137302730,0.0017116,94049.0,94048.0,0.38979627]
[1732137303680,0.0017116,94049.0,94048.0,0.44039627]
[1732137304252,0.0017116,94049.0,94048.0,0.43839627]
[1732137305430,0.0017116,94049.0,94048.0,0.38979627]
[1732137308694,0.0017116,94049.0,94048.0,0.51124711]
[1732137309170,0.0017116,94049.0,94048.0,0.61324711]
[1732137310011,1e-06,94061.0,94060.0,0.106315]
[1732137310372,1e-06,94061.0,94060.0,0.39313012]
[1732137310556,1e-06,94061.0,94060.0,0.3952945]
[1732137312386,1e-06,94061.0,94060.0,0.43026397]